Cogmind - Beta 13 @@@ ROGUE MODE // 2024.06.27 @ 11:47:05 Player: Jazzer Result: Destroyed by S-10 Pest with Light Assault Rifle Performance ------------- Evolutions (0) 0 Regions Visited (2) 400 Robots Destroyed (25) 125 Value Destroyed (497) 497 Prototype IDs (2) 40 Alien Tech Used (0) 0 Bonus (50) 50 TOTAL SCORE: 1112 Bonus ------- Follower Combat Kills 67 Friendly Fire -17 Cogmind --------- Core Integrity 0/250 Matter 300/300 Energy 150/150 System Corruption 0% Temperature Cool (24) Movement Rolling (140) Ox4 Location -10/Mines Parts ------- > --- POWER (1) -------- Light Angular Momentum Engine > --- PROPULSION (2) --- Wheel Wheel > --- UTILITY (2) ------ Improved Heat Sink Huge Storage Unit > --- WEAPON (2) ------- Beam Cannon Beam Cannon > --- INVENTORY (25) --- Light Nuclear Core Light Nuclear Core Wheel Wheel Wheel Compact Wheel Compact Wheel Compact Wheel Improved Heat Sink Improved Heat Sink Improved Heat Sink High-capacity Matter Pod (200) High-capacity Matter Pod (200) Light Armor Plating Assault Rifle Light Assault Rifle Grenade Launcher Datajack Peak State ------------ > --- POWER ------------ Light Angular Momentum Engine > --- PROPULSION ------- Wheel Wheel > --- UTILITY ---------- Improved Heat Sink Huge Storage Unit > --- WEAPON ----------- Beam Cannon Beam Cannon > --- INVENTORY -------- Light Nuclear Core Light Nuclear Core Light Treads Light Treads Wheel Wheel Wheel Improved Heat Sink High-capacity Matter Pod High-capacity Matter Pod Light Armor Plating Assault Rifle Light Assault Rifle Grenade Launcher Datajack [Rating: 15] Favorites ----------- Power Light Nuclear Core Engine Light Ion Engine Power Core Light Nuclear Core Propulsion Wheel Leg Aluminum Leg Wheel Wheel Utility Improved Heat Sink Device Improved Heat Sink Storage Huge Storage Unit Weapon Beam Cannon Energy Cannon Beam Cannon Ballistic Gun Assault Rifle Build | -11 -10 -10 ------- Run | Yrd Mat Min Slots Evolved . | . . . Power . | . . . Propulsion . | . . . Utility . | . . . Weapon . | . . . Parts Attached 16 | . 13 3 Power 2 | . 1 1 Engine 1 | . . 1 Core 1 | . 1 . Reactor . | . . . Propulsion 4 | . 4 . Treads . | . . . Leg 2 | . 2 . Wheel 2 | . 2 . Hover . | . . . Flight . | . . . Utility 6 | . 5 1 Device 3 | . 2 1 Storage 3 | . 3 . Processor . | . . . Hackware . | . . . Protection . | . . . Artifact . | . . . Weapon 4 | . 3 1 Energy Gun . | . . . Energy Cannon 2 | . 1 1 Ballistic Gun 2 | . 2 . Ballistic Cannon . | . . . Launcher . | . . . Special Weapon . | . . . Impact Weapon . | . . . Slashing Weapon . | . . . Piercing Weapon . | . . . Special Melee Weapon . | . . . Unidentified Prototypes . | . . . Parts Lost 2 | . 2 . Power 1 | . 1 . Propulsion . | . . . Utility . | . . . Weapon 1 | . 1 . Highest Loss Streak 2 | . 2 . To Critical Strikes . | . . . Average Slot Usage (%) 99 | . 98 100 Engine 5 | . 5 4 Core 8 | . 7 9 Leg 13 | . 20 . Wheel 14 | . 7 28 Device 13 | . 13 14 Storage 14 | . 14 14 Energy Cannon 12 | . 6 24 Ballistic Gun 15 | . 20 3 Naked Turns . | . . . Heaviest Build 96 | 11 90 96 Greatest Support 20 | 20 20 20 Greatest Overweight (x) 4 | . 4 4 Average Overweight (x) 2 | . 1 4 Largest Inventory Capacity 25 | . 25 25 Average Capacity 17 | . 13 25 Most Carried 18 | . 13 18 Average Carried 10 | . 9 14 Final Capacity 25 | 8 25 25 Final Carried 18 | 6 13 18 Class Distribution -------------------- 100% | Mutant Dominant Class ---------------- Mutant | -10/Materials Mutant | -10/Mines Resources | -11 -10 -10 ----------- Run | Yrd Mat Min Matter Collected 1065 | 200 572 293 Remotely . | . . . Salvage Created 1089 | . 788 301 Parts 56 | . 47 9 Haulers Intercepted 1 | . 1 . Recyclers Shooed 6 | . 6 . Parts Field Recycled . | . . . Retrieved Matter . | . . . Parts Self-Destructed . | . . . Prevented . | . . . Kills | -11 -10 -10 ------- Run | Yrd Mat Min Combat Hostiles Destroyed 13 | . 11 2 Guns 8 | . 8 . Cannons 5 | . 3 2 Classes Destroyed 6 | . 5 1 Worker 2 | . . 2 Hauler 1 | . 1 . Recycler 6 | . 4 2 Watcher 3 | . 3 . Swarmer 3 | . 3 . Grunt 10 | . 8 2 Best Kill Streak 3 | . 3 2 Combat Bots Only 2 | . 2 2 Max Kills in Single Turn 1 | . 1 1 Gunslinging . | . . . Exploded . | . . . Melee . | . . . Uniques/NPCs Destroyed . | . . . Combat | -11 -10 -10 -------- Run | Yrd Mat Min Hostile Shots Fired 103 | . 76 27 Missed 17 | . 12 5 Damage Taken 1000 | . 706 294 Core 252 | . 185 67 Absorbed by Shields . | . . . Core Remaining (%) 100 | 100 . . Volleys Fired 89 | . 69 20 Largest 2 | . 2 2 Hottest 120 | . 80 120 Shots Fired 166 | . 126 40 Gun 127 | . 114 13 Cannon 39 | . 12 27 Launcher . | . . . Special . | . . . Kinetic 127 | . 114 13 Thermal 39 | . 12 27 Explosive . | . . . Electromagnetic . | . . . Robot Hit Streak 12 | . 10 12 Robot Miss Streak 5 | . 5 2 Penetration Max . | . . . Secondary Targets 1 | . 1 . Max Gunslinging Chain 1 | . 1 . Shots Hit Robots 98 | . 69 29 Core Hits 44 | . 35 9 Critical Kills . | . . . Critical Parts Destroyed 1 | . 1 . Critical Strikes 1 | . 1 . Destroy 1 | . 1 . Melee Attacks . | . . . Impact . | . . . Slashing . | . . . Piercing . | . . . Sneak Attacks . | . . . Combat Hostiles . | . . . Follow-up Attacks . | . . . Damage Inflicted 1345 | . 856 489 Guns 739 | . 675 64 Cannons 606 | . 181 425 Explosions . | . . . Melee . | . . . Ramming . | . . . Kinetic 739 | . 675 64 Thermal 606 | . 181 425 Explosive . | . . . Electromagnetic . | . . . Impact . | . . . Slashing . | . . . Piercing . | . . . Highest Corruption . | . . . Average Corruption . | . . . Corruption Purged . | . . . Corruption Blocked . | . . . Overload Shots . | . . . Overflow Damage . | . . . Projectiles . | . . . Explosions . | . . . Melee . | . . . Knockbacks . | . . . Impact . | . . . Kinetic . | . . . Secondary . | . . . Self-Inflicted Damage . | . . . Shots . | . . . Rammed . | . . . Targets Rammed . | . . . Kicked . | . . . Crushed . | . . . Highest Temperature 65 | . 41 65 Average Temperature 26 | . 17 30 Received Heat Transfer 444 | . 285 159 Siege Activations . | . . . Robots Corrupted . | . . . Combat Hostiles . | . . . Parts Fried . | . . . Impact Corruptions . | . . . Robots Melted . | . . . Combat Hostiles . | . . . Parts Melted 4 | . . 4 Heat Transferred 1258 | . 370 888 Parts Sabotaged . | . . . Parts Stolen . | . . . Parts Stripped . | . . . Power Chain Reactions . | . . . Alert | -11 -10 -10 ------- Run | Yrd Mat Min Peak Influence 267 | . 267 117 Initial 22 | . . 22 Average 98 | . 118 58 Maximum Alert Level 1 | . 1 . Low Security (%) 90 | . 85 100 Level 1 9 | . 14 . Level 2 . | . . . Level 3 . | . . . Level 4 . | . . . Level 5 . | . . . High Security . | . . . Max Security . | . . . Squads Dispatched 2 | . 2 . Investigation 1 | . 1 . Extermination . | . . . Reinforcement 1 | . 1 . Assault . | . . . Garrison . | . . . Intercept . | . . . Searches Triggered . | . . . Construction Impeded . | . . . Haulers Reinforced . | . . . Active Scanning Responses . | . . . Cargo Convoy Interrupts . | . . . Stealth | -11 -10 -10 --------- Run | Yrd Mat Min Distress Signals . | . . . Communications Jammed . | . . . Distress Signals . | . . . Times Spotted 30 | . 23 7 Peak Tracking Total 6 | . 6 3 Tactical Retreats 2 | . 2 . Traps | -11 -10 -10 ------- Run | Yrd Mat Min Traps Triggered 2 | . 2 . Indirectly . | . . . Trap Hack Attempts . | . . . Triggered . | . . . Disarmed . | . . . Reprogrammed . | . . . Reused . | . . . Traps Extracted . | . . . Installed . | . . . Triggered . | . . . Machines | -11 -10 -10 ---------- Run | Yrd Mat Min Machines Disabled . | . . . Max in Single Turn . | . . . Machines Repaired . | . . . Machines Dismantled . | . . . Machines Sabotaged . | . . . Overloaded Fab Kills . | . . . Hacking | -11 -10 -10 --------- Run | Yrd Mat Min Machines Accessed 6 | . 6 . Terminals 6 | . 6 . Fabricators . | . . . Repair Stations . | . . . Recycling Units . | . . . Scanalyzers . | . . . Garrison Access . | . . . Total Hacks 20 | . 20 . Successful 9 | . 9 . Failed 11 | . 11 . Catastrophic 1 | . 1 . Database Lockouts . | . . . Manual 20 | . 20 . Terminals 20 | . 20 . Fabricators . | . . . Repair Stations . | . . . Recycling Units . | . . . Scanalyzers . | . . . Garrison Access . | . . . Terminal Hacks 5 | . 5 . Robot Analysis 2 | . 2 . Prototype ID Bank 1 | . 1 . Unreport Threat 1 | . 1 . Hauler Manifests 1 | . 1 . Fabricator Hacks . | . . . Repair Station Hacks . | . . . Recycling Unit Hacks . | . . . Scanalyzer . | . . . Garrison Access Hacks . | . . . Unauthorized Hacks 4 | . 4 . Terminals 4 | . 4 . Botnet 4 | . 4 . Fabricators . | . . . Repair Stations . | . . . Recycling Units . | . . . Scanalyzers . | . . . Garrison Access . | . . . Data Cores Recovered . | . . . Used . | . . . Hacking Detections 6 | . 6 . Full Trace Events 1 | . 1 . Feedback Events . | . . . Feedback Blocked . | . . . Robot Schematics Acquired . | . . . Robots Built . | . . . Authchips . | . . . Time . | . . . Total Robot Build Rating . | . . . Part Schematics Acquired . | . . . Parts Built . | . . . Authchips . | . . . Time . | . . . Total Part Build Rating . | . . . Parts Repaired . | . . . Time . | . . . Parts Recycled . | . . . Recycled Matter . | . . . Retrieved Matter . | . . . Retrieved Components . | . . . Parts Scanalyzed . | . . . Part Schematics Acquired . | . . . Parts Damaged . | . . . Bothacking | -11 -10 -10 ------------ Run | Yrd Mat Min Used RIF Installer . | . . . Robots Hacked . | . . . Non-combat . | . . . Combat . | . . . Robot Hacks Applied . | . . . Relay Couplers Released . | . . . Fabnet Peak Effective % . | . . . Robots Rewired . | . . . Allies Hacked . | . . . Hacks Repelled . | . . . Allies | -11 -10 -10 -------- Run | Yrd Mat Min Total Allies 3 | . . 3 Largest Group 3 | . . 3 Highest-Rated Group 40 | . . 40 Highest-Rated Ally 16 | . . 16 Total Orders . | . . . Ally Attacks 17 | . . 17 Total Damage 125 | . . 125 Kills 3 | . . 3 Allies Corrupted . | . . . Allies Melted . | . . . Intel | -11 -10 -10 ------- Run | Yrd Mat Min Robot Analysis Total 2 | . 2 . Derelict Logs Recovered . | . . . Drone Launches . | . . . Drone Recoveries . | . . . Exploration | -11 -10 -10 ------------- Run | Yrd Mat Min Turns Passed 1562 | . 1050 512 Spaces Moved 949 | 1 632 316 Core . | . . . Treads . | . . . Legs 443 | 1 442 . Wheels 506 | . 190 316 Hover . | . . . Flight . | . . . Fastest Speed 110 | 120 110 140 Average Speed 129 | 120 124 140 Slowest Speed 140 | 120 140 140 Overloaded Moves . | . . . Propulsion Burnouts . | . . . Robots Hopped . | . . . Cave-ins Triggered . | . . . Exploration Rate (%) 60 | 2 95 83 Regions Visited 2 Branch Regions 1 Pre-discovered Areas . | . . . Known Exits Taken . | . . . Unknown Exits Taken 2 | 1 1 . Scrap Searched 1 | . . 1 Spaces Dug . | . . . Terrain Destroyed . | . . . Melee . | . . . Projectile . | . . . AOE . | . . . Terrain Rammed . | . . . Walls Destroyed . | . . . Machines Disabled . | . . . Actions | -11 -10 -10 --------- Run | Yrd Mat Min Total 1122 | . 774 348 Wait 39 | . 39 . Move 947 | . 631 316 Hop . | . . . Pick Up 18 | . 12 6 Fast Attach 3 | . 3 . Attach 1 | . 1 . Detach . | . . . Swap 12 | . 9 3 Drop 13 | . 10 3 Fire 89 | . 69 20 Melee . | . . . Ram . | . . . Kick . | . . . Crush . | . . . Escape Stasis . | . . . Rewire . | . . . Trap . | . . . Miscellaneous . | . . . Route ------- -11/Scrapyard -10/Materials (discovered 5 exits: [*Mat x3] / [*Min x2]) -10/Mines (discovered 1 exit: [*Mat]) History --------- Turn | Location | Event 1 | -11/Scrapyard | Discovered new exit (range 0) 1 | -11/Scrapyard | Entered Materials 31 | -10/Materials | Discovered new exit (range 13) 126 | -10/Materials | Discovered new exit (range 16) 300 | -10/Materials | Build established: Mutant 428 | -10/Materials | Core integrity fell below 50% 511 | -10/Materials | Discovered new exit (range 14) 582 | -10/Materials | Discovered new exit (range 16) 901 | -10/Materials | Discovered new exit (range 5) 1051 | -10/Materials | Entered Mines 1053 | -10/Mines | Core integrity fell below 20% 1087 | -10/Mines | Met a Derelict bent on vengeance 1105 | -10/Mines | Discovered new exit (range 7) 1211 | -10/Mines | Assisted by bots powering up and referring to "LRC-V3" 1563 | -10/Mines | Destroyed by S-10 Pest with Light Assault Rifle Last Messages --------------- 01441_ Acquired Lgt. Nuclear Core. 01442_ Dropped Lgt. Nuclear Core. 01443_ Dropped Lgt. Treads. 01443_ K-01 Serf collects debris. 01443_ Dropped Lgt. Treads. 01444_ K-01 Serf collects debris. 01445_ Acquired Com. Wheel. 01447_ K-01 Serf collects debris. 01452_ Acquired Com. Wheel. 01454_ K-01 Serf collects debris. 01454_ Acquired Com. Wheel. 01457_ K-01 Serf collects debris. 01464_ Acquired Imp. Heat Sink. 01465_ K-01 Serf collects debris. 01490_ R-06 Scavenger collects Heat Sink. 01493_ Wheel melted. 01493_ K-01 Serf destroyed. 01495_ K-01 Serf collects debris. 01496_ K-01 Serf destroyed. 01561_ S-10 Pest destroyed. Map ----- +----------------------------------------------------+ | | | | | | | | | | | | | | | | | | | | | | | | | ???????????????????????????????????????????? | | ????????????????##?????????????????????????? | | ????????????????? ????????????????????????? | | ????????????????? ???????????????????????? | | ?????????????????? ???????????????????????? | | ??????????????????? ??????????????????????? | | ???????????????????? #######???????????????? | | ????????????????????#%$ #???????????????? | | ????????????????????# !! #???????????????? | | ???????????????????## !s ! #???????????????? | | ??????????????????## !s ! #???????????????? | | ??????????????????# !!! #???????????????? | | ??????????????????# #???????????????? | | ??????????????????## @ #???????????????? | | ???????????????????####gg #???????????????? | | ??????????????????????## ######??????????? | | ???#####??????????????## ##?????????? | | ???# ##?????????#???# #?????????? | | ???# #???????? #???# #?????????? | | ??## #???????? ##??# k #####?????????? | | ??# #???????# ##?## ## #?????????????? | | ??# #??????# #??##### #?????????????? | | ??# #???### #??????# #?????????????? | | ??# #??## #???????# #?????????????? | | ?## #??# #????????# #?????????????? | | ## #???# #?????????# #?????????????? | | # #????## ##?????????# #?????????????? | | ##????# ###????####### #?????????????? | | #????# #??????# #?????????????? | | ###### #??????# #######?????????????? | | %%= ######## #???????????????????? | | ####### #???????????????????? | | ##?????##### ######???????????????????? | | ##?????????# #????????????????????????? | | #?????????# #????????????????????????? | | #???????### #########????######??????? | | ##???????# ##??## ##?????? | | #????????# #### #?????? | +----------------------------------------------------+ Best States ------------- Heat Dissipation 39 Energy Generation 18 Energy Capacity 160 Matter Stores 300 Matter Capacity 300 Sight Range 16 Terrain Scan Density 10 Evasion (%) 55 Item Schematics ----------------- None Robot Schematics ------------------ None Fabricated ------------ Nothing Alien Tech Used ----------------- None Achievements -------------- None Challenges ------------ None Game ------ Seed PointyFireSpecial Manual? 0 Play Time 00:18:28 Cumulative 280.2 hours Start 2024.06.27 @ 11:27:49 End 2024.06.27 @ 11:47:05 Sessions 1 Manual Loads 0 Difficulty Rogue Special Mode None Game No. 157 Rogue 157 Adventurer 0 Explorer 0 Win Type - Total 2 Types 2/0/0/0/0/0/0/0/0 Lore% 49 Gallery% 59 Achievement% 34 Wizard Run 0 Options --------- Layout 0 ASCII 0 Keyboard 1 Movement Numpad Keybinds 0 Fullscreen 2 Font 18/SmallcapsGlow Map View 76x50 Zoom Use 0% Tactical HUD 1 Map Filters NONE Filters NONE Steam 1 RUN: 6d53c046-1a11-4f4d-adac-28b9282c3415